[Event "ETCC Open 2023"]
[Site "Budva"]
[Date "2023.11.12"]
[Round "2.22"]
[White "Santos Latasa, Jaime"]
[Black "Nabaty, Tamir"]
[Result "1/2-1/2"]
[ECO "C67"]
[WhiteElo "2635"]
[BlackElo "2632"]
[Annotator "TA"]
[PlyCount "64"]
[EventDate "2023.11.10"]
[EventType "team-tourn"]
[EventCountry "MNE"]
[SourceTitle "playchess.com"]
[Source "ChessBase"]
[SourceQuality "1"]
[WhiteTeam "Spain"]
[BlackTeam "Israel"]
[WhiteTeamCountry "ESP"]
[BlackTeamCountry "ISR"]
[TimeControl "40/5400+30:1800+30"]

{[%evp 16,64,14,4,20,0,33,26,30,22,36,31,19,20,22,10,14,30,49,39,47,50,58,54,81,41,51,27,47,28,16,3,8,9,7,0,0,0,0,0,0,0,0,0,0,0,0,0,0,0,0]} 1. e4 {[%emt 0:00:03]} e5 {[%emt 0:00:07]} 2. Nf3 {[%emt 0:00:12]} Nc6 {[%emt 0:00:07]} 3. Bb5 {[%emt 0:00:05]} Nf6 {[%emt 0:00:06]} 4. O-O {[%emt 0:02:20][%cal Bh1f1,Bf1e1,Be1e5][%mdl 32]} Nxe4 {[%emt 0:00:12]} 5. Re1 {[%emt 0:00:05]} Nd6 {[%emt 0:00:12]} 6. Nxe5 {[%emt 0:00:20]} Be7 {[%emt 0:00:20]} 7. Bf1 {[%emt 0:00:11]} Nxe5 {[%emt 0:00:08]} 8. Rxe5 {[%emt 0:00:05]} O-O {[%emt 0:00:12]} 9. d4 {[%emt 0:03:35]} Ne8 {[%emt 0:00:09] C67: Ruy Lopez: Berlin Defence: 4 0-0 Nxe4.} 10. Bd3 {[%emt 0:09:31]} Bf6 {[%emt 0:13:09] Black is weak on the light squares} 11. Re1 {[%emt 0:02:26]} (11. Qh5 g6 12. Qh6 Bxe5 13. dxe5 d5 $17) 11... d5 {[%emt 0:00:32] White has an edge.} 12. c3 {[%emt 0:01:21] [#]} ({Much weaker is} 12. Qh5 g6 13. Qf3 Bxd4 $15) 12... b6 $146 {[%emt 0:08:51]} ({Predecessor:} 12... c6 13. a4 a5 14. Bf4 g6 15. Nd2 Ng7 16. Be5 Bf5 17. Nf3 Bg4 18. h3 Bxf3 19. Qxf3 Bxe5 20. Rxe5 {1-0 Kovalev,V (2648)-Petrosyan,M (2607) PNWCC Online blitz JP 14th 2020 (11)}) 13. Bf4 {[%emt 0:04:23]} c5 {[%emt 0:02:06]} 14. Be5 {[%emt 0:02:52]} ({Of course not} 14. Qh5 g6 15. Qf3 cxd4) 14... Be6 {[%emt 0:04:22]} 15. Nd2 {[%emt 0:01:19][%cal Bb1d2,Bd2f3,Bf3g5][%mdl 32]} Bxe5 {[%emt 0:07:01]} 16. dxe5 {[%emt 0:06:45]} f6 {[%emt 0:02:41]} 17. f4 {[%emt 0:11:04]} g6 {[%emt 0:04:51]} 18. Nf3 {[%emt 0:03:55]} Ng7 {[%emt 0:09:17]} 19. Qd2 {[%emt 0:00:48]} Kh8 {[%emt 0:04:59]} 20. Rf1 {[%emt 0:05:53] White is more active.} fxe5 {[%emt 0:03:20]} 21. fxe5 {[%emt 0:00:43][%cal Od3g6] Strongly threatening Bxg6!} (21. Nxe5 $5 {[%cal Rd3g6]} d4 22. Bxg6 $16) 21... Kg8 $1 {[%emt 0:07:53]} 22. Ng5 {[%emt 0:08:11]} Qe7 {[%emt 0:06:06]} 23. Bc2 {[%emt 0:01:21][%cal Bd3c2,Bc2a4,Ba4b3,Bb3d5][%mdl 32] The position is equal.} Rad8 {[%emt 0:12:22]} (23... Kh8 {simplifies} 24. Nxe6 Qxe6 25. Qg5 Kg8) 24. Rxf8+ {[%emt 0:02:32]} (24. Bb3 {looks sharper.} c4 25. Bc2 Bf5 26. Bxf5 Rxf5 27. Rxf5 Nxf5 28. Nf3) 24... Rxf8 {[%emt 0:00:02]} 25. Nxe6 {[%emt 0:06:29]} Qxe6 {[%emt 0:00:16]} 26. Rd1 {[%emt 0:00:11]} Rd8 {[%emt 0:01:14]} 27. Qg5 {[%emt 0:01:32]} Re8 {[%emt 0:03:44]} 28. Ba4 {[%emt 0:03:50]} Qxe5 {[%emt 0:01:35]} 29. Qxe5 {[%emt 0:00:22]} Rxe5 {[%emt 0:00:02]} 30. Rxd5 {[%emt 0:02:19]} Rxd5 {[%emt 0:00:17]} 31. Bb3 {[%emt 0:00:06]} Kf7 {[%emt 0:00:29][%cal Of7e6] [#] Hoping for ...Ke6!} 32. Bxd5+ {[%emt 0:00:05]} Kf6 {[%emt 0:00:03] Weighted Error Value: White=0.05 (flawless) /Black=0.05 (flawless)} 1/2-1/2

[Event "ETCC Open 2023"]
[Site "Budva"]
[Date "2023.11.12"]
[Round "2.23"]
[White "Smirin, Ilia"]
[Black "Shirov, Alexei"]
[Result "1/2-1/2"]
[ECO "C80"]
[WhiteElo "2578"]
[BlackElo "2668"]
[Annotator "TA"]
[PlyCount "61"]
[EventDate "2023.11.10"]
[EventType "team-tourn"]
[EventCountry "MNE"]
[SourceTitle "playchess.com"]
[Source "ChessBase"]
[SourceQuality "1"]
[WhiteTeam "Israel"]
[BlackTeam "Spain"]
[WhiteTeamCountry "ISR"]
[BlackTeamCountry "ESP"]
[TimeControl "40/5400+30:1800+30"]

{[%evp 27,61,35,35,33,35,32,37,27,36,33,81,81,79,70,68,73,75,60,81,54,81,58,62,57,68,45,50,43,42,39,65,60,85,59,55,64]} 1. e4 {[%emt 0:02:12]} e5 {[%emt 0:00:07]} 2. Nf3 {[%emt 0:00:23]} Nc6 {[%emt 0:00:08]} 3. Bb5 {[%emt 0:00:33][%cal Bf1b5,Bb5a4,Ba4b3][%mdl 32]} a6 {[%emt 0:00:15]} 4. Ba4 {[%emt 0:00:18]} Nf6 {[%emt 0:00:11]} 5. O-O {[%emt 0:00:25]} Nxe4 {[%emt 0:00:44]} 6. d4 {[%emt 0:00:49]} b5 {[%emt 0:00:08]} 7. Bb3 {[%emt 0:00:10]} d5 {[%emt 0:00:10]} 8. dxe5 {[%emt 0:01:17]} Be6 {[%emt 0:01:20]} 9. Nbd2 {[%emt 0:03:11]} Nc5 {[%emt 0:03:28]} 10. c3 {[%emt 0:01:05]} d4 {[%emt 0:00:14]} 11. Bxe6 {[%emt 0:00:52]} Nxe6 {[%emt 0:00:06]} 12. cxd4 {[%emt 0:00:11]} Ncxd4 {[%emt 0:00:08]} 13. a4 {[%emt 0:01:37]} Be7 {[%emt 0:01:44]} 14. Nxd4 {[%emt 0:06:28]} Nxd4 {[%emt 0:01:03]} 15. Ne4 {[%emt 0:03:45] aiming for axb5. C80: Open Ruy Lopez: Sidelines and 9 Nbd2.} O-O {[%emt 0:15:52]} 16. axb5 {[%emt 0:02:30]} Nxb5 {[%emt 0:00:48]} 17. Be3 {[%emt 0:03:22]} Qxd1 {[%emt 0:06:21]} 18. Rfxd1 {[%emt 0:00:07]} f5 {[%emt 0:06:05] [#]} (18... Rfe8 $14 {is more appropriate.}) 19. exf6 $1 $16 {[%emt 0:07:31]} Bxf6 {[%emt 0:01:21]} 20. Ra2 {[%emt 0:05:45] [#]} Nd6 $146 {[%emt 0:27:17]} ({Predecessor:} 20... Be5 21. Nc5 a5 22. g3 Rfe8 23. Rd7 c6 24. Kg2 Nc7 25. Nd3 Nd5 26. Bc5 Bc7 {½-½ Rivas Romero,G (2322)-Rivas Maceda,J (2309) PER Cup16 fin email 2011}) 21. Nxf6+ {[%emt 0:11:03]} Rxf6 {[%emt 0:00:53]} 22. Ra4 {[%emt 0:01:54]} Nb5 {[%emt 0:08:31]} 23. h3 {[%emt 0:05:59]} Re8 {[%emt 0:00:53]} 24. Rd7 {[%emt 0:01:39]} Ree6 {[%emt 0:00:41]} 25. Bc5 {[%emt 0:01:21] Rd8+ would be deadly.} h6 {[%emt 0:01:16]} 26. Rg4 {[%emt 0:03:38] White is much more active.} Rf7 {[%emt 0:01:38]} 27. Rd8+ {[%emt 0:02:37]} Kh7 {[%emt 0:00:05]} 28. Ra8 {[%emt 0:00:32]} Rf5 {[%emt 0:05:23]} 29. Be3 {[%emt 0:04:21]} Rff6 {[%emt 0:02:14]} 30. Kh2 {[%emt 0:05:31]} Rc6 {[%emt 0:00:40]} 31. Ra4 {[%emt 0:05:25] Weighted Error Value: White=0.08 (flawless) /Black=0.13 (very precise)} 1/2-1/2

[Event "ETCC Open 2023"]
[Site "Budva"]
[Date "2023.11.12"]
[Round "2.24"]
[White "Iturrizaga Bonelli, Eduardo"]
[Black "Postny, Evgeny"]
[Result "0-1"]
[ECO "D31"]
[WhiteElo "2621"]
[BlackElo "2577"]
[Annotator "TA"]
[PlyCount "148"]
[EventDate "2023.11.10"]
[EventType "team-tourn"]
[EventCountry "MNE"]
[SourceTitle "playchess.com"]
[Source "ChessBase"]
[SourceQuality "1"]
[WhiteTeam "Spain"]
[BlackTeam "Israel"]
[WhiteTeamCountry "ESP"]
[BlackTeamCountry "ISR"]
[TimeControl "40/5400+30:1800+30"]

{[%evp 14,148,0,-31,-31,-31,-25,-22,-29,-43,0,-17,-6,-37,-35,-33,0,-56,-56,-65,-49,-84,-79,-85,-93,-97,-59,-98,-98,-99,-106,-108,-102,-125,-84,-101,-90,-132,-123,-124,-124,-121,-35,-73,-77,-152,-152,-181,-178,-196,-41,-36,-45,-48,-29,-30,-29,-47,-63,-143,-72,-154,-150,-139,-92,-94,0,-145,-131,-154,-148,-164,-176,-182,-162,-179,-201,-290,-295,-348,-333,-386,-222,-222,-222,-235,-205,-208,-208,-197,-112,-369,-368,-365,-361,-281,-289,-201,-114,-233,-270,-370,-262,-270,-270,-417,-415,-662,-633,-29964,-29964,-29965,-29965,-29960,-29957,-11672,-29966,-29969,-29971,-29974,-29974,-29973,-29975,-29975,-29976,-29976,-29977,-29978,-29979,-29980,-29979,-29979,-29980,-29980,-29981,-29981,-29981]} 1. c4 {[%emt 0:00:03]} e6 {[%emt 0:00:17]} 2. Nc3 {[%emt 0:00:12]} d5 {[%emt 0:00:09]} 3. cxd5 {[%emt 0:00:39]} exd5 {[%emt 0:00:05]} 4. d4 {[%emt 0:00:03]} c6 {[%emt 0:02:56]} 5. Bf4 {[%emt 0:01:09]} Bd6 {[%emt 0:00:23]} 6. Bg3 {[%emt 0:02:09]} Ne7 {[%emt 0:02:30]} 7. e3 {[%emt 0:00:27]} Nf5 {[%emt 0:03:35]} 8. Bd3 {[%emt 0:00:45]} Nxg3 {[%emt 0:15:09] D31: Queen's Gambit Declined: Semi-Slav without ...Nf6 (+ Marshall Gambit and Noteboom) and Exchange Variation lines without ...Nf6.} 9. hxg3 {[%emt 0:00:51]} Nd7 {[%emt 0:00:14]} 10. Qc2 {[%emt 0:09:54]} (10. Bxh7 $2 Nf6 11. Qc2 g6 $19) (10. Rxh7 $2 Rxh7 11. Bxh7 g6 $19) 10... Nf6 {[%emt 0:00:49] The position is equal.} 11. O-O-O {[%emt 0:01:39]} Qe7 {[%emt 0:04:15]} 12. Nf3 {[%emt 0:11:44][%cal Rd3h7]} Be6 {[%emt 0:21:17] [#]} 13. Ng5 $146 {[%emt 0:36:36]} ({Predecessor:} 13. Kb1 O-O-O 14. Nb5 Bb8 15. Ne5 Bxe5 16. dxe5 Ng4 17. Nxa7+ Kb8 18. Nxc6+ bxc6 19. Qxc6 Nxf2 {0-1 Narmontas,R (2004)-Pultinevicius,P (2512) Plunge op 40th 2020 (7)}) 13... Bg4 {[%emt 0:05:52]} 14. Rde1 {[%emt 0:01:15]} O-O-O {[%emt 0:00:22]} 15. e4 {[%emt 0:22:25]} (15. Nxh7 $11 Nxh7 16. Bxh7) 15... dxe4 $15 {[%emt 0:05:52]} 16. Ngxe4 {[%emt 0:00:42]} Kb8 $1 {[%emt 0:08:44]} 17. Nc5 {[%emt 0:06:19]} Qc7 {[%emt 0:00:47]} 18. Nb3 {[%emt 0:01:30]} g6 {[%emt 0:03:08]} 19. Kb1 {[%emt 0:00:16]} Rhe8 {[%emt 0:01:08]} 20. a3 {[%emt 0:00:17]} Be6 {[%emt 0:02:22]} 21. Ne4 {[%emt 0:01:30]} Nxe4 {[%emt 0:00:48]} 22. Bxe4 {[%emt 0:00:07]} h5 {[%emt 0:05:28]} 23. Re3 {[%emt 0:00:05]} f5 {[%emt 0:03:44]} 24. Bf3 {[%emt 0:01:53]} Qf7 {[%emt 0:02:33]} 25. Nc5 {[%emt 0:00:00][%cal Oc5b7]} Ba2+ {[%emt 0:00:40]} 26. Ka1 {[%emt 0:00:02][%cal Oc5b7]} Rxe3 {[%emt 0:00:12]} 27. fxe3 {[%emt 0:00:06][%cal Oc5b7]} Bxc5 {[%emt 0:01:33]} (27... Bxg3 28. b3 $16) (27... Qc4 $17 28. Qf2 Bxc5) 28. Qxc5 {[%emt 0:00:12]} Bd5 {[%emt 0:00:05]} 29. Re1 {[%emt 0:01:36]} (29. Rc1 $142) 29... Qc7 $1 $17 {[%emt 0:02:26]} 30. Bxd5 {[%emt 0:00:30]} Qxg3 {[%emt 0:02:07]} (30... Rxd5 31. Qf8+ Rd8 32. Qf6 $17) (30... cxd5 31. Qxc7+ Kxc7 32. Kb1 $17) 31. Rc1 {[%emt 0:00:20]} cxd5 $19 {[%emt 0:03:21][%mdl 4096] Endgame KQR-KQR} (31... Rxd5 $19 32. Qb4 (32. Qf8+ $2 Kc7 $17) 32... Kc8) 32. Qe7 $15 {[%emt 0:00:26][%cal Re7d8]} Qd6 {[%emt 0:00:06]} 33. Qf7 {[%emt 0:00:38]} Rf8 {[%emt 0:00:22]} 34. Qg7 {[%emt 0:00:06][%cal Oc1c7]} Re8 $36 {[%emt 0:02:56][%mdl 2048] Black fights for an advantage.} 35. Rc5 {[%emt 0:00:40]} a6 {[%emt 0:00:14]} (35... Rxe3 $2 36. Qh8+) 36. Qf7 {[%emt 0:00:23]} ({Better is} 36. Rc3 $15) 36... Qe6 {[%emt 0:00:28]} (36... Rxe3 $142 {Hoping for ...Ka7.} 37. Qg8+ Ka7) 37. Qc7+ {[%emt 0:00:43]} ({White should play} 37. Qg7) 37... Ka7 $1 $17 {[%emt 0:00:27]} 38. Rc3 {[%emt 0:00:03]} Re7 {[%emt 0:00:49] Wards off Qg7} (38... Qe7 $142 {Strongly threatening ...Qxc7.} 39. Qg3 g5) 39. Qd8 {[%emt 0:00:52]} Re8 {[%emt 0:00:26] Wards off Rc8} ({Black should try} 39... Qd7 40. Qg8 Qe6) 40. Qc7 {[%emt 0:00:29]} Qe7 {[%emt 0:00:58] Against Qg7} 41. Qg3 {[%emt 0:03:48]} g5 {[%emt 0:16:22]} 42. Qf3 {[%emt 0:01:35]} Qf7 {[%emt 0:00:07]} 43. Qg3 {[%emt 0:00:04]} g4 {[%emt 0:01:55] aiming for ...Qf6.} (43... Qe7 44. Qh3 $17) 44. Qd6 {[%emt 0:05:20]} Qe6 {[%emt 0:00:47]} 45. Qc7 {[%emt 0:01:06]} (45. Qc5+ $142 Ka8 46. Qc7) 45... Qe7 {[%emt 0:00:48]} 46. Qf4 {[%emt 0:01:33]} Qe4 {[%emt 0:04:00]} 47. Qh2 {[%emt 0:07:52] [#]} h4 {[%emt 0:02:03][%mdl 512]} 48. Qxh4 $19 {[%emt 0:00:05]} Qxg2 {[%emt 0:00:13] ...Qg1+ would be deadly.} 49. Ka2 {[%emt 0:00:12]} Qh3 {[%emt 0:04:30]} 50. Qf6 {[%emt 0:03:00]} Qh7 {[%emt 0:01:00] Prevents Qf7.} (50... Rxe3 51. Rc8 $11) 51. Qd6 {[%emt 0:02:42] Wards off g3} Qf7 {[%emt 0:00:44]} (51... Qe7 $19 52. Qxd5 g3) 52. Rc5 $2 {[%emt 0:02:45][%mdl 8192]} (52. Qc5+ $17 Ka8 53. Qd6) 52... Qe6 {[%emt 0:01:54]} (52... Rxe3 $2 {is the wrong capture.} 53. Rc8 Qe7 54. Qb8+ Kb6 55. Qf4 $17) 53. Qxd5 {[%emt 0:05:09]} Qxd5+ {[%emt 0:00:16]} ({Not} 53... Qxe3 54. Rc7 Qe6 55. Rxb7+ Ka8 56. Qxe6 Rxe6 57. Rf7 $11) 54. Rxd5 {[%emt 0:00:03] KR-KR} Rf8 {[%emt 0:00:10]} ({Worse is} 54... Rxe3 55. Rxf5 Kb6 56. Kb1 $17) 55. Rc5 {[%emt 0:00:02]} Kb6 {[%emt 0:00:42]} (55... g3 $19 {...Kb6 is the strong threat.} 56. Rc1 f4 57. exf4 Rxf4) 56. a4 {[%emt 0:01:59] [#]} (56. Rc2 $17 {keeps fighting.}) 56... a5 $1 {[%emt 0:00:47]} 57. Rc1 {[%emt 0:01:38]} f4 {[%emt 0:00:56]} 58. exf4 {[%emt 0:00:03]} Rxf4 {[%emt 0:00:04]} 59. Rc5 {[%emt 0:00:48]} (59. Rc3 {might work better.}) 59... Rxd4 {[%emt 0:00:16]} 60. Rb5+ {[%emt 0:00:03]} (60. Rf5 $142 Rxa4+ 61. Kb3) 60... Kc6 {[%emt 0:02:20]} 61. Rxa5 {[%emt 0:00:06]} Rd5 {[%emt 0:00:09]} 62. Ra8 {[%emt 0:00:03] [#]} Rg5 $1 {[%emt 0:00:07]} 63. Rc8+ {[%emt 0:00:20]} Kd5 {[%emt 0:00:08]} 64. b4 {[%emt 0:00:55]} Kd4 {[%emt 0:00:42]} (64... Rg7 $19 65. Rd8+ Ke4 66. Re8+ Kf5) 65. Kb3 {[%emt 0:00:34] Black mates.} g3 {[%emt 0:00:04]} 66. Rd8+ {[%emt 0:00:47]} Ke3 {[%emt 0:00:26]} 67. Re8+ {[%emt 0:01:00]} Kf3 {[%emt 0:00:16]} 68. Rf8+ {[%emt 0:00:42]} Kg4 {[%emt 0:00:26]} 69. Rf1 {[%emt 0:00:22]} g2 {[%emt 0:00:22]} 70. Rg1 {[%emt 0:00:03]} Kf3 {[%emt 0:00:04]} 71. b5 {[%emt 0:01:04]} Rg4 {[%emt 0:00:25]} 72. a5 {[%emt 0:00:23]} Kf2 {[%emt 0:00:04]} 73. Ra1 {[%emt 0:00:03]} g1=Q {[%emt 0:00:07]} 74. Rxg1 {[%emt 0:00:03]} Kxg1 {[%emt 0:00:04] Weighted Error Value: White=0.34/Black=0.19 (very precise)} 0-1

[Event "ETCC Open 2023"]
[Site "Budva"]
[Date "2023.11.12"]
[Round "2.25"]
[White "Bacrot, Etienne"]
[Black "Yilmaz, Mustafa"]
[Result "1/2-1/2"]
[ECO "C88"]
[WhiteElo "2668"]
[BlackElo "2650"]
[Annotator "RC"]
[PlyCount "54"]
[EventDate "2023.11.10"]
[EventType "team-tourn"]
[EventCountry "MNE"]
[SourceTitle "playchess.com"]
[Source "ChessBase"]
[SourceQuality "1"]
[WhiteTeam "France"]
[BlackTeam "Turkey"]
[WhiteTeamCountry "FRA"]
[BlackTeamCountry "TUR"]
[TimeControl "40/5400+30:1800+30"]

1. e4 {[%emt 0:05:51]} e5 {[%emt 0:00:02]} 2. Nf3 {[%emt 0:00:08]} Nc6 {[%emt 0:00:04]} 3. Bb5 {[%emt 0:00:04]} a6 {[%emt 0:00:03]} 4. Ba4 {[%emt 0:00:11]} Nf6 {[%emt 0:00:06]} 5. O-O {[%emt 0:00:05]} Be7 {[%emt 0:00:22]} 6. Re1 {[%emt 0:00:06]} b5 {[%emt 0:00:25]} 7. Bb3 {[%emt 0:00:06]} O-O {[%emt 0:00:08]} 8. h3 {[%emt 0:01:15]} Bb7 {[%emt 0:02:09]} 9. d3 {[%emt 0:03:26]} d5 {[%emt 0:01:33]} 10. exd5 {[%emt 0:00:07]} Nxd5 {[%emt 0:00:05]} 11. Nbd2 {[%emt 0:00:39]} Qd7 {[%emt 0:04:07]} 12. a4 {[%emt 0:02:38]} Nf4 {[%emt 0:02:22]} 13. Ne4 {[%emt 0:01:45]} Ng6 {[%emt 0:00:08]} 14. h4 {[%emt 0:10:36]} Qg4 {[%emt 0:01:35]} 15. Bg5 {[%emt 0:03:35]} Bxg5 {[%emt 0:01:45]} 16. hxg5 {[%emt 0:01:45]} Na5 {[%emt 0:02:25]} 17. Ba2 {[%emt 0:00:28]} bxa4 {[%emt 0:02:46]} 18. Nfd2 {[%emt 0:02:43]} Qf5 {[%emt 0:02:26]} 19. Nf1 {[%emt 0:01:18]} Bxe4 {[%emt 0:20:10]} 20. Rxe4 {[%emt 0:05:09]} Qxg5 {[%emt 0:04:45]} 21. Rg4 {[%emt 0:05:22]} Qd8 {[%emt 0:11:21]} 22. Rxa4 {[%emt 0:25:28]} Nb7 {[%emt 0:01:33]} 23. Ne3 {[%emt 0:02:16]} Nc5 {[%emt 0:05:07]} 24. Ra5 {[%emt 0:00:32]} Nb7 {[%emt 0:00:11]} 25. Ra4 {[%emt 0:00:22]} Nc5 {[%emt 0:00:33]} 26. Ra5 {[%emt 0:01:13]} Nb7 {[%emt 0:00:10]} 27. Ra4 {[%emt 0:00:59]} Nc5 {[%emt 0:01:36]} 1/2-1/2

[Event "ETCC Open 2023"]
[Site "Budva"]
[Date "2023.11.12"]
[Round "2.26"]
[White "Can, Emre"]
[Black "Moussard, Jules"]
[Result "1/2-1/2"]
[ECO "E15"]
[WhiteElo "2566"]
[BlackElo "2639"]
[Annotator "TA"]
[PlyCount "75"]
[EventDate "2023.11.10"]
[EventType "team-tourn"]
[EventCountry "MNE"]
[SourceTitle "playchess.com"]
[Source "ChessBase"]
[SourceQuality "1"]
[WhiteTeam "Turkey"]
[BlackTeam "France"]
[WhiteTeamCountry "TUR"]
[BlackTeamCountry "FRA"]
[TimeControl "40/5400+30:1800+30"]

{[%evp 19,75,0,12,31,10,0,25,18,33,22,18,-8,38,-10,0,-22,-12,-14,0,0,0,0,0,-5,-3,-4,-4,-4,0,-6,-8,-6,0,0,0,0,0,0,-4,-8,-6,-8,0,0,0,0,0,-8,0,0,0,0,0,0,0,0,0,-4]} 1. d4 {[%emt 1:31:00]} Nf6 {[%emt 0:00:58]} 2. c4 {[%emt 0:00:00]} e6 {[%emt 0:00:10]} 3. Nf3 {[%emt 0:00:00]} b6 {[%emt 0:00:22]} 4. g3 {[%emt 0:00:00]} Ba6 {[%emt 0:00:21]} 5. b3 {[%emt 0:00:00]} Bb4+ {[%emt 0:00:09]} 6. Bd2 {[%emt 0:00:00]} Be7 {[%emt 0:00:22]} 7. Nc3 {[%emt 0:00:00]} d5 {[%emt 0:01:25]} 8. cxd5 {[%emt 0:00:00]} exd5 {[%emt 0:00:49]} 9. Bg2 {[%emt 0:00:00]} O-O {[%emt 0:01:12]} 10. O-O {[%emt 0:00:00]} Re8 {[%emt 0:01:16]} 11. Ne5 {[%emt 0:00:00][%cal Ob3b4] E15: Queen's Indian: 4 g3 sidelines, 4 g3 Ba6 and 4 g3 Bb7 early deviations.} Bb7 {[%emt 0:02:10]} 12. Qc2 {[%emt 0:00:00]} c5 {[%emt 0:02:20]} 13. dxc5 {[%emt 0:00:00] White has an edge.} bxc5 {[%emt 0:01:30]} 14. Rad1 {[%emt 0:00:00]} Qc8 {[%emt 0:04:27]} 15. Rfe1 {[%emt 0:00:00] [#]} Na6 $146 {[%emt 0:09:55]} (15... Bf8 $11 16. Nd3 Nbd7) ({Predecessor:} 15... Bf8 16. Nd3 Nc6 17. Qc1 c4 18. bxc4 dxc4 19. Nf4 Nb4 20. Bxb7 Qxb7 21. a3 Nc6 {½-½ Klapp,H (2301)-Werner,J (2368) GER DSF C12 f email rapid 2019}) 16. Nd3 {[%emt 0:00:00]} (16. e4 $1 $14) 16... d4 {[%emt 0:04:27] The position is equal.} (16... Nb4 {seems wilder.} 17. Qc1 d4 18. Bxb7 Qxb7 19. Na4 Nxd3 20. exd3 Qf3) 17. Bxb7 {[%emt 0:00:00]} Qxb7 {[%emt 0:00:06]} 18. Na4 {[%emt 0:00:00]} Ne4 {[%emt 0:00:49] Repels Bg5} 19. f3 {[%emt 0:00:00]} Nxd2 {[%emt 0:02:12]} 20. Qxd2 {[%emt 0:00:00]} Qb5 {[%emt 0:12:11] Strongly threatening ...c4.} 21. Qc1 {[%emt 0:00:00]} Bd8 {[%emt 0:09:13]} 22. e4 {[%emt 0:00:00]} (22. Naxc5 Rc8 23. b4 (23. a4 Qa5 $17) 23... Nxb4 $17) (22. Ndxc5 Ba5 23. Ne4 Bxe1 24. Rxe1 Rad8 $17) 22... dxe3 {[%emt 0:01:14][%cal Oc5c4]} 23. Rxe3 {[%emt 0:00:00] [#] Qc4 is the strong threat.} (23. Naxc5 $2 e2 24. Rd2 Nxc5 25. Nxc5 Ba5 $19) 23... Bf6 {[%emt 0:01:40]} 24. Rxe8+ {[%emt 0:02:50]} (24. Naxc5 $2 Bd4 25. Ne4 Rac8 $19) (24. Ndxc5 Rec8 25. Rd5 Nc7 $17) 24... Rxe8 {[%emt 0:00:18]} 25. Re1 {[%emt 0:00:58]} (25. Naxc5 $2 {perishes.} Bd4+ 26. Kh1 Nxc5 $19) (25. Ndxc5 $2 Rc8 26. Rd5 Nxc5 $19) 25... Rd8 {[%emt 0:18:39]} 26. Ne5 {[%emt 0:00:08]} (26. Naxc5 $2 {is the wrong capture.} Bd4+ 27. Kg2 Nxc5 $19) 26... h5 {[%emt 0:02:43]} 27. Qc4 {[%emt 0:03:43]} Qxc4 {[%emt 0:01:47]} 28. Nxc4 {[%emt 0:00:06]} Nb4 {[%emt 0:02:11]} 29. Kf1 {[%emt 0:02:07]} Bd4 {[%emt 0:01:40]} 30. Re2 {[%emt 0:01:39]} Kf8 {[%emt 0:00:46]} 31. Rd2 {[%emt 0:01:13]} Re8 {[%emt 0:06:41]} 32. a3 {[%emt 0:00:43]} Nc6 {[%emt 0:00:43]} 33. Rc2 {[%emt 0:00:16]} Rb8 {[%emt 0:03:44]} 34. Nd2 {[%emt 0:00:53]} Na5 {[%emt 0:00:34]} 35. Nxc5 {[%emt 0:00:25]} Bxc5 {[%emt 0:00:03][%mdl 64] [#] Remove Defender} 36. Rxc5 {[%emt 0:00:06]} Nxb3 {[%emt 0:00:08]} 37. Nxb3 {[%emt 0:00:21]} Rxb3 {[%emt 0:00:03]} 38. Rc8+ {[%emt 0:00:23] An even fight not without its subleties.   Weighted Error Value: White=0.08 (flawless) /Black=0.06 (flawless)} 1/2-1/2